Cogmind - Beta 16 *** ADVENTURER MODE // 2025.11.16 @ 17:42:41 Player: Joe Result: Destroyed by as-46296 with Assembled Blade Performance ------------- Evolutions (0) 0 Regions Visited (2) 400 Robots Destroyed (8) 40 Value Destroyed (185) 185 Prototype IDs (4) 80 Alien Tech Used (0) 0 Bonus (0) 0 TOTAL SCORE: 705 Bonus ------- None Cogmind --------- Core Integrity 0/250 Matter 259/300 Energy 103/250 System Corruption 0% Temperature Warm (109) Movement Core (900) Ox17 Location -10/Mines Parts ------- > --- POWER (1) -------- Ion Engine > --- PROPULSION (2) --- (None) > --- UTILITY (2) ------ High-capacity Storage Unit Utility Shielding > --- WEAPON (2) ------- Beam Cannon Shotgun > --- INVENTORY (20) --- Light Ion Engine Light Ion Engine Light Ion Engine Improved Heat Sink Tractor Beam EM Pulse Gun Small Laser Beam Cannon Grenade Launcher Datajack Peak State ------------ > --- POWER ------------ Light Ion Engine > --- PROPULSION ------- Light Treads Light Treads > --- UTILITY ---------- Huge Storage Unit Utility Shielding > --- WEAPON ----------- Medium Laser Light Assault Rifle > --- INVENTORY -------- Ion Engine Light Ion Engine Light Ion Engine Improved Heat Sink Small Laser Beam Cannon Shotgun Grenade Launcher [Rating: 8] Favorites ----------- Power Light Ion Engine Engine Light Ion Engine Propulsion Light Treads Treads Light Treads Utility Utility Shielding Device Seismic Detector Storage Small Storage Unit Protection Utility Shielding Weapon Medium Laser Energy Gun Medium Laser Energy Cannon Beam Cannon Ballistic Gun Light Assault Rifle Build | -11 -10 -10 ------- Run | Yrd Mat Min Slots Evolved . | . . . Power . | . . . Propulsion . | . . . Utility . | . . . Weapon . | . . . Parts Attached 13 | 6 4 3 Power 2 | 1 . 1 Engine 2 | 1 . 1 Core . | . . . Reactor . | . . . Propulsion 2 | 2 . . Treads 2 | 2 . . Leg . | . . . Wheel . | . . . Hover . | . . . Flight . | . . . Utility 5 | 1 4 . Device 1 | . 1 . Storage 3 | 1 2 . Processor . | . . . Hackware . | . . . Protection 1 | . 1 . Artifact . | . . . Weapon 4 | 2 . 2 Energy Gun 1 | 1 . . Energy Cannon 1 | . . 1 Ballistic Gun 2 | 1 . 1 Ballistic Cannon . | . . . Launcher . | . . . Special Weapon . | . . . Impact Weapon . | . . . Slashing Weapon . | . . . Piercing Weapon . | . . . Special Melee Weapon . | . . . Unidentified Prototypes . | . . . Parts Lost 5 | . 1 4 Power 1 | . . 1 Propulsion 2 | . . 2 Utility 1 | . 1 . Weapon 1 | . . 1 Highest Loss Streak 4 | . 1 4 To Critical Strikes . | . . . Average Backups 8 | 1 8 12 Power 2 | . 3 3 Propulsion . | . . . Utility 1 | . 1 2 Weapon 3 | . 3 5 Tool/Special . | . . . Unused Backups 10 | . . 10 Power 3 | . . 3 Propulsion . | . . . Utility 2 | . . 2 Weapon 4 | . . 4 Tool/Special 1 | . . 1 Average Slot Usage (%) 95 | . 95 91 Engine 14 | . 14 14 Treads 27 | . 28 22 Device 1 | . 2 . Storage 14 | . 14 14 Protection 7 | . 7 14 Energy Gun 13 | . 14 11 Ballistic Gun 13 | . 14 11 Peak Build Rating 8 | 6 8 8 Average Rating 7 | 4 7 7 On Entrance 4 | . 6 8 Avg Prop Armor Cover (%) . | . . . Naked Turns . | . . . Heaviest Build 87 | 11 87 47 Greatest Support 40 | 40 40 40 Greatest Overweight (x) 2 | . 2 1 Average Overweight (x) . | . . 1 Largest Inventory Capacity 25 | 8 25 20 Average Capacity 16 | 6 16 20 Most Carried 13 | 5 13 13 Average Carried 8 | 2 8 12 Final Capacity 20 | 8 20 20 Final Carried 13 | 2 13 10 Class Distribution -------------------- 100% | Mutant Dominant Class ---------------- Mutant | -10/Materials Mutant | -10/Mines Resources | -11 -10 -10 ----------- Run | Yrd Mat Min Matter Collected 299 | 250 49 . Remotely . | . . . Salvage Created 310 | . 267 43 Parts 11 | . 11 . Haulers Intercepted . | . . . Recyclers Shooed . | . . . Parts Field Recycled . | . . . Retrieved Matter . | . . . Parts Self-Destructed . | . . . Prevented . | . . . Parts Restored . | . . . Kills | -11 -10 -10 ------- Run | Yrd Mat Min Combat Hostiles Destroyed 10 | . 7 3 Guns 8 | . 7 1 Cannons 2 | . . 2 Classes Destroyed 4 | . 3 1 Recycler 1 | . 1 . Swarmer 3 | . 3 . Grunt 4 | . 4 . Assembled 3 | . . 3 Best Kill Streak 4 | . 4 3 Combat Bots Only 4 | . 4 3 Max Kills in Single Turn 1 | . 1 1 Gunslinging . | . . . Exploded . | . . . Melee . | . . . Uniques/NPCs Destroyed . | . . . Combat | -11 -10 -10 -------- Run | Yrd Mat Min Hostile Shots Fired 118 | . 90 28 Missed 30 | . 23 7 Hits 88 | . 67 21 Melee 8 | . . 8 Projectile 80 | . 67 13 Critical Strikes 2 | . 1 1 Damage Taken 872 | . 514 358 Core 250 | . 82 168 Absorbed by Shields . | . . . Ignored by Resistances 259 | . 162 97 Core Remaining (%) 100 | 100 . . Volleys Fired 31 | . 24 7 Largest 2 | . 2 2 Hottest 83 | . 70 83 Shots Fired 60 | . 48 12 Gun 56 | . 48 8 Cannon 4 | . . 4 Launcher . | . . . Special . | . . . Kinetic 31 | . 24 7 Thermal 29 | . 24 5 Explosive . | . . . Electromagnetic . | . . . Robot Hit Streak 11 | . 11 3 Robot Miss Streak 2 | . 1 2 Penetration Max . | . . . Secondary Targets 3 | . 3 . Max Gunslinging Chain 1 | . 1 . Shots Hit Robots 32 | . 25 7 Core Hits 19 | . 13 6 Critical Kills . | . . . Critical Parts Destroyed . | . . . Critical Strikes 1 | . 1 . Burn 1 | . 1 . Melee Attacks . | . . . Impact . | . . . Slashing . | . . . Piercing . | . . . Sneak Attacks . | . . . Combat Hostiles . | . . . Follow-up Attacks . | . . . Damage Inflicted 429 | 9 287 133 Guns 345 | . 284 61 Cannons 72 | . . 72 Explosions . | . . . Melee . | . . . Ramming 12 | 9 3 . Kinetic 144 | . 95 49 Thermal 273 | . 189 84 Explosive . | . . . Electromagnetic . | . . . Impact . | . . . Slashing . | . . . Piercing . | . . . Highest Corruption . | . . . Average Corruption . | . . . Corruption Purged . | . . . Corruption Blocked . | . . . Overload Shots . | . . . Overflow Damage . | . . . Projectiles . | . . . Explosions . | . . . Melee . | . . . Knockbacks . | . . . Impact . | . . . Kinetic . | . . . Secondary . | . . . Self-Inflicted Damage . | . . . Shots . | . . . Rammed 3 | 2 1 . Targets Rammed 4 | 2 2 . Kicked . | . . . Crushed 1 | . 1 . Highest Temperature 423 | . 423 109 Average Temperature 147 | . 160 48 Received Heat Transfer 247 | . 207 40 Effects 1 | . 1 . Shutdowns 1 | . 1 . Siege Activations . | . . . Martial Activations . | . . . Shielding Activations . | . . . Robots Disrupted . | . . . Combat Hostiles . | . . . Robots Corrupted . | . . . Combat Hostiles . | . . . Parts Fried . | . . . Impact Corruptions . | . . . Robots Melted . | . . . Combat Hostiles . | . . . Parts Melted . | . . . Heat Transferred 814 | . 629 185 Parts Sabotaged . | . . . Parts Stolen . | . . . Parts Stripped . | . . . Power Chain Reactions . | . . . Alert | -11 -10 -10 ------- Run | Yrd Mat Min Maximum Alert Level . | . . . Low Security (%) 100 | 100 100 100 Level 1 . | . . . Level 2 . | . . . Level 3 . | . . . Level 4 . | . . . Level 5 . | . . . High Security . | . . . Max Security . | . . . Peak Influence 92 | . 92 . Initial . | . . . Average 10 | . 11 . Influence Increases 219 | . 219 . Destroy 0b10 Robot/C 140 | . 140 . Destroy 0b10 Robot/NC 5 | . 5 . Destroy Leader 40 | . 40 . Successful Hack 34 | . 34 . Influence Decreases 219 | . 219 . Time Decay 209 | . 209 . Lost Part 10 | . 10 . Squads Dispatched 2 | . 2 . Investigation 2 | . 2 . Extermination . | . . . Reinforcement . | . . . Assault . | . . . Garrison . | . . . Intercept . | . . . Searches Triggered . | . . . Construction Impeded . | . . . Haulers Reinforced . | . . . Active Scanning Responses . | . . . Cargo Convoy Interrupts . | . . . Stealth | -11 -10 -10 --------- Run | Yrd Mat Min Distress Signals . | . . . Communications Jammed . | . . . Distress Signals . | . . . Times Spotted 21 | . 10 11 Peak Tracking Total 11 | . 6 11 Tactical Retreats . | . . . Traps | -11 -10 -10 ------- Run | Yrd Mat Min Traps Triggered 2 | . 2 . Indirectly . | . . . Trap Hack Attempts . | . . . Triggered . | . . . Disarmed . | . . . Reprogrammed . | . . . Reused . | . . . Traps Extracted . | . . . Installed . | . . . Triggered . | . . . Machines | -11 -10 -10 ---------- Run | Yrd Mat Min Machines Disabled . | . . . Max in Single Turn . | . . . Machines Repaired . | . . . Machines Dismantled . | . . . Machines Sabotaged . | . . . Overloaded Fab Kills . | . . . Hacking | -11 -10 -10 --------- Run | Yrd Mat Min Machines Accessed 8 | . 7 1 Terminals 7 | . 7 . Fabricators . | . . . Repair Stations . | . . . Recycling Units . | . . . Scanalyzers . | . . . Garrison Access . | . . . Total Hacks 15 | . 14 1 Successful 9 | . 8 1 Failed 6 | . 6 . Catastrophic . | . . . Database Lockouts . | . . . Manual . | . . . Terminals 14 | . 14 . Fabricators . | . . . Repair Stations . | . . . Recycling Units . | . . . Scanalyzers . | . . . Garrison Access . | . . . Terminal Hacks 9 | . 8 1 Record 4 | . 4 . Prototype ID Bank 2 | . 2 . Open Door 1 | . . 1 Alert Level 2 | . 2 . Fabricator Hacks . | . . . Repair Station Hacks . | . . . Recycling Unit Hacks . | . . . Scanalyzer . | . . . Garrison Access Hacks . | . . . Unauthorized Hacks . | . . . Terminals . | . . . Fabricators . | . . . Repair Stations . | . . . Recycling Units . | . . . Scanalyzers . | . . . Garrison Access . | . . . Data Cores Recovered . | . . . Used . | . . . Hacking Detections 6 | . 6 . Full Trace Events . | . . . Feedback Events . | . . . Feedback Blocked . | . . . Robot Schematics Acquired . | . . . Robots Built . | . . . Authchips . | . . . Time . | . . . Total Robot Build Rating . | . . . Part Schematics Acquired . | . . . Parts Built . | . . . Authchips . | . . . Time . | . . . Total Part Build Rating . | . . . Part Studies Acquired . | . . . Parts Repaired . | . . . Time . | . . . Parts Recycled . | . . . Recycled Matter . | . . . Retrieved Matter . | . . . Retrieved Components . | . . . Parts Scanalyzed . | . . . Part Schematics Acquired . | . . . Parts Damaged . | . . . Bothacking | -11 -10 -10 ------------ Run | Yrd Mat Min Used RIF Installer . | . . . Robots Hacked . | . . . Non-combat . | . . . Combat . | . . . Robot Hacks Applied . | . . . Relay Couplers Released . | . . . Fabnet Peak Effective % . | . . . Robots Rewired . | . . . Allies Hacked . | . . . Hacks Repelled . | . . . Allies | -11 -10 -10 -------- Run | Yrd Mat Min Total Allies . | . . . Largest Group . | . . . Highest-Rated Group . | . . . Highest-Rated Ally . | . . . Total Orders . | . . . Ally Attacks . | . . . Total Damage . | . . . Kills . | . . . Allies Corrupted . | . . . Allies Melted . | . . . Intel | -11 -10 -10 ------- Run | Yrd Mat Min Active Infowar (turns) 187 | . 187 . Seismic 187 | . 187 . Robot Analysis Total . | . . . Derelict Logs Recovered . | . . . Drone Launches . | . . . Drone Recoveries . | . . . Exploration | -11 -10 -10 ------------- Run | Yrd Mat Min Turns Passed 1418 | 69 1301 48 Spaces Moved 606 | 38 556 12 Core 7 | 7 . . Treads 599 | 31 556 12 Legs . | . . . Wheels . | . . . Hover . | . . . Flight . | . . . Fastest Speed 50 | 50 160 240 Average Speed 212 | 139 216 240 Slowest Speed 320 | 160 320 240 Overloaded Moves . | . . . Propulsion Burnouts . | . . . Robots Hopped . | . . . Potential Cave-ins . | . . . Cave-ins Triggered . | . . . Exploration Rate (%) 29 | 4 78 6 Regions Visited 2 Branch Regions 1 Pre-discovered Areas . | . . . Known Exits Taken . | . . . Unknown Exits Taken 2 | 1 1 . Scrap Searched . | . . . Spaces Dug . | . . . Terrain Destroyed . | . . . Melee . | . . . Projectile . | . . . AOE . | . . . Terrain Rammed . | . . . Walls Destroyed . | . . . Machines Disabled . | . . . Actions | -11 -10 -10 --------- Run | Yrd Mat Min Total 681 | 53 606 22 Wait . | . . . Move 604 | 37 555 12 Hop . | . . . Pick Up 25 | 8 17 . Fast Attach . | . . . Attach 12 | 6 3 3 Detach . | . . . Swap 1 | . 1 . Drop 4 | . 4 . Fire 31 | . 24 7 Melee . | . . . Ram . | . . . Kick . | . . . Crush 4 | 2 2 . Escape Stasis . | . . . Rewire . | . . . Trap . | . . . Miscellaneous . | . . . Route ------- -11/Scrapyard -10/Materials (discovered 3 exits: [*Mat x2] / *Min) -10/Mines History --------- Turn | Location | Event 41 | -11/Scrapyard | Discovered new exit (range 12) 70 | -11/Scrapyard | Entered Materials 71 | -10/Materials | Met a group of wandering Federalists 308 | -10/Materials | Build established: Mutant 340 | -10/Materials | Discovered new exit (range 8) 565 | -10/Materials | Discovered new exit (range 10) 1325 | -10/Materials | Discovered new exit (range 13) 1371 | -10/Materials | Entered Mines 1372 | -10/Mines | Assembled infested the area 1380 | -10/Mines | Met a Derelict who couldn't figure out how to use a Trap Extractor 1406 | -10/Mines | Core integrity fell below 50% 1418 | -10/Mines | Core integrity fell below 20% 1419 | -10/Mines | Destroyed by as-46296 with Assembled Blade Last Messages --------------- Sealed Doors opened. 01380_ 6U-YMV(g): "So I found this thing but I have no idea how to use it. And who the hell trapped this place to begin with?!" 01380_ 6U-YMV(g): "I give up! Here you try, I'm outta here before something nasty happens..." 01380_ Tosses Imp. Trap Extractor to the ground. 01380_ 6U-YMV(g) triggered Explosive Trap. 01380_ An explosion rips through the floor. 01380_ Machine disabled. 01395_ 6U-YMV(g) suffers critical hit (Destroy). 01395_ 6U-YMV(g) destroyed. 01400_ Lgt. Treads destroyed. 01400_ Lgt. Ion Engine destroyed. 01400_ Lgt. Treads destroyed. 01402_ Med. Laser severed. 01409_ as-42844 destroyed. 01409_ Lgt. Assault Rifle destroyed. 01412_ as-78335 destroyed. 01418_ as-76209 destroyed. Map ----- +----------------------------------------------------+ | | | | | | | | | | | | | | | | | | | | | | | | | | | | | | | | | | | | | | | | | | | | | | | ?########?????????????????? | | ?#["%"""#?????????????????? | | ?#@a]*!!#?????????????????? | | ?##aaa ##?????????????????? | | ?# a!#??????????????????? | | ?# aa ##?????????????????? | | ?# X #?????????????????? | | ?# a #####?????????????? | | ?# ##????????????? | | ?# #????????????? | | ?## [ #????????????? | | ??## %= ##????????????? | | ???### ## #?????????????? | | ?????## ## ????????????? | | ??????# ## ## #??????????? | | ??????# #??#??????????? | | ??????#### #?????????????? | | ?????????# ?????????????? | | ????????? ?????????????? | | ????????? ????????????? | | ????????? ????????????? | | ????????? ???????????? | | ????????? ????????????? | | ????????? #????????????? | | ????????? ##????????????? | | ????????? #??????????????? | | ??????????????????????????? | +----------------------------------------------------+ Best States ------------- Heat Dissipation 25 Energy Generation 10 Energy Capacity 250 Matter Stores 300 Matter Capacity 300 Sight Range 16 Terrain Scan Density 10 Resistance: KI 20 Resistance: TH 20 Resistance: EX 20 Resistance: EM 20 Resistance: I 20 Resistance: S 20 Resistance: P 20 Utility Shielding 33 Evasion (%) 40 Recoil Reduction 2 Offensive Hacking 10 Item Schematics ----------------- None Robot Schematics ------------------ None Fabricated ------------ Nothing Repaired ---------- Nothing Studied --------- None Alien Tech Used ----------------- None Achievements -------------- None Challenges ------------ None Game ------ Seed TripodCloakModule Manual? 0 Play Time 00:06:24 Cumulative 253.8 hours Start 2025.11.16 @ 17:36:45 End 2025.11.16 @ 17:42:41 Sessions 1 Manual Loads 0 Difficulty Adventurer Special Mode None Game No. 66 Rogue 0 Adventurer 66 Explorer 0 Win Type - Total 1 Types 0/0/0/1/0/0/0/0/0/0 Lore% 49 Gallery% 54 Achievement% 37 Wizard Run 0 Options --------- Layout 1 ASCII 0 Keyboard 0 Movement Numpad Keybinds 0 Fullscreen 1 Font 24/Smallcaps Map View 50x35 Zoom Use 0% Tactical HUD 1 Map Filters NONE Filters NONE Steam 0 RUN: ed81e480-debc-4ba8-a623-2c7860f3bd45